bitfinex-derivatives/quotes_SOLF0:USTF0_20260202
["timestamp","ask_amount","ask_price","bid_price","bid_amount"]
[1770066844479,11.53400584,104.63,104.58,6.41235748]
[1770066844676,2.92480584,104.62,104.58,6.41235748]
[1770066845469,11.53400584,104.63,104.58,6.41235748]
[1770066845981,11.53470584,104.62,104.58,6.41235748]
[1770066850678,2.92480584,104.6,104.56,6.43365065]
[1770066851881,11.53550584,104.61,104.56,6.43365065]
[1770066852181,2.92480584,104.61,104.56,6.43365065]
[1770066852575,11.53480584,104.62,104.56,6.43365065]
[1770066852774,11.53400584,104.63,104.57,6.42676866]
[1770066852977,8.6092,104.63,104.57,6.42676866]
[1770066853385,8.6092,104.63,104.58,6.42676866]
[1770066854580,11.53400584,104.63,104.58,6.42676866]
[1770066857691,2.92480584,104.62,104.58,6.42676866]
[1770066858683,2.92480584,104.62,104.58,15.03976866]
[1770066859991,2.92480584,104.61,104.57,15.03602005]
[1770066860789,2.92480584,104.6,104.57,6.42222005]
[1770066861692,2.92480584,104.61,104.58,4.95743458]
[1770066862293,2.92480584,104.62,104.58,13.57043458]
[1770066863391,2.92480584,104.62,104.58,4.95743458]
[1770066865493,195.8519,104.69,104.59,4.95833505]
[1770066865893,2.92480584,104.63,104.59,4.95833505]
[1770066866289,2.92480584,104.62,104.59,4.95833505]
[1770066866597,2.92602533,104.6,104.57,4.95833505]
[1770066866793,2.92602533,104.6,104.54,4.95833505]
[1770066868395,2.92602533,104.6,104.56,4.9063933]
[1770066869300,2.92602533,104.6,104.56,13.5210933]
[1770066872192,2.92602533,104.6,104.56,4.9063933]
[1770066872793,2.92602533,104.61,104.57,4.8998558]
[1770066875405,2.92602533,104.6,104.55,4.88823499]
[1770066875805,2.92602533,104.61,104.55,4.88823499]
[1770066876807,2.92602533,104.61,104.57,4.88262291]
[1770066879807,2.92602533,104.6,104.56,13.5001666]
[1770066880907,2.92602533,104.6,104.56,4.8854666]
[1770066885214,11.53752533,104.6,104.56,4.8854666]
[1770066885408,2.92602533,104.59,104.54,13.52275945]
[1770066885611,2.92602533,104.59,104.55,4.9100582]
[1770066886609,8.6123,104.59,104.55,4.9100582]
[1770066888011,2.92602533,104.6,104.56,4.91080843]
[1770066888212,2.92602533,104.61,104.56,4.91080843]
[1770066888809,2.92602533,104.61,104.56,13.52490843]
[1770066889113,2.92602533,104.61,104.56,4.91080843]
[1770066889506,2.92602533,104.61,104.57,8.6138]
[1770066895228,2.92602533,104.6,104.56,4.91080843]
[1770066900429,11.53692533,104.61,104.56,4.91080843]
[1770066901033,2.92602533,104.59,104.54,13.52900779]
[1770066901235,133.9198,104.63,104.54,4.91270779]
[1770066901236,2.92602533,104.58,104.54,4.91270779]
[1770066902235,2.92602533,104.59,104.54,4.91270779]
[1770066902631,2.92602533,104.6,104.55,4.91099211]
[1770066902932,2.92602533,104.61,104.55,4.91099211]
[1770066903136,11.53672533,104.61,104.56,4.91099211]
[1770066904333,2.92602533,104.6,104.56,4.91099211]
[1770066904528,2.92602533,104.59,104.54,4.9161404]
[1770066905838,11.53842533,104.59,104.54,4.9161404]
[1770066906237,2.92602533,104.58,104.54,4.9161404]
[1770066906535,2.92602533,104.59,104.54,4.9161404]
[1770066906730,11.53762533,104.6,104.55,4.90059694]
[1770066909235,2.92602533,104.61,104.56,4.90792738]
[1770066910539,2.92602533,104.61,104.56,13.52252738]
[1770066910942,2.92602533,104.61,104.56,4.90792738]
[1770066917137,11.53672533,104.61,104.56,4.90792738]
[1770066917334,476.5266,104.64,104.57,4.92808895]
[1770066917538,2.92602533,104.62,104.57,4.92808895]
[1770066917741,342.62,104.64,104.57,4.92808895]
[1770066918043,345.54602533,104.64,104.58,4.93042821]
[1770066918636,2.92602533,104.63,104.58,4.93042821]
[1770066918838,2.92602533,104.62,104.58,4.93042821]
[1770066919043,2.92602533,104.61,104.58,4.93042821]
[1770066919843,11.53682533,104.61,104.55,4.91955144]
[1770066920044,2.92602533,104.6,104.55,4.91955144]
[1770066920640,2.92602533,104.6,104.56,4.9195851]
[1770066920837,11.53682533,104.61,104.56,4.9195851]
[1770066921039,2.92602533,104.6,104.56,4.9195851]
[1770066922439,2.92602533,104.58,104.54,5.00223162]
[1770066923644,2.92602533,104.59,104.54,5.00223162]
[1770066925140,11.53672533,104.61,104.55,5.00460819]
[1770066925443,2.92602533,104.61,104.55,5.00460819]
[1770066926038,2.92602533,104.61,104.56,8.6146]
[1770066926235,2.92602533,104.61,104.55,5.00460819]
[1770066926438,2.92694093,104.61,104.55,5.00460819]
[1770066926646,2.92694093,104.6,104.55,5.00460819]
[1770066926850,2.92694093,104.59,104.55,13.62000819]
[1770066927346,2.92694093,104.6,104.55,13.62000819]
[1770066927545,2.92694093,104.6,104.56,5.0117769]
[1770066927739,11.53764093,104.61,104.56,5.0117769]
[1770066928148,2.92694093,104.6,104.56,5.0117769]
[1770066928740,2.92694093,104.58,104.54,13.6281769]
[1770066930049,2.92694093,104.58,104.54,5.0117769]
[1770066939753,11.53924093,104.59,104.54,13.6279769]
[1770066941252,11.53924093,104.59,104.54,5.0117769]
[1770066941653,2.92694093,104.58,104.54,5.0117769]
[1770066942558,2.92694093,104.59,104.55,5.02314736]
[1770066944356,2.92694093,104.59,104.56,5.02612842]
[1770066944561,2.92694093,104.61,104.56,5.02612842]
[1770066945451,2.92694093,104.61,104.56,13.64092842]
[1770066948762,2.92694093,104.61,104.56,5.02612842]
[1770066950863,2.92694093,104.61,104.57,5.0246523]
[1770066952460,2.92694093,104.62,104.58,5.0277243]
[1770066953265,11.53604093,104.63,104.58,5.0277243]
[1770066954764,2.92694093,104.62,104.58,5.0277243]
[1770066955065,2.92694093,104.65,104.59,5.02698032]
[1770066956368,11.53434093,104.65,104.6,5.02757764]
[1770066957571,2.92694093,104.64,104.6,5.02757764]
[1770066957773,11.53434093,104.65,104.6,5.02757764]
[1770066958270,2.92694093,104.64,104.6,5.02757764]
[1770066960274,2.92694093,104.65,104.6,13.63897764]
[1770066961269,2.92694093,104.64,104.6,13.63897764]
[1770066961473,11.53364093,104.66,104.6,16.56591857]
[1770066963271,11.53364093,104.66,104.61,8.6106]
[1770066963480,11.53284093,104.67,104.61,13.41583351]
[1770066964475,8.6059,104.67,104.61,16.34277444]
[1770066964867,8.6066,104.66,104.61,7.73217444]
[1770066970481,136.79534093,104.67,104.59,13.42744861]
[1770066970684,2.92694093,104.66,104.59,7.74228954]
[1770066970987,341.5,104.68,104.64,2.92694093]
[1770066971186,8.636e-05,104.7,104.64,2.92694093]
[1770066971388,341.98,104.69,104.65,2.92694093]
[1770066972387,350.5848,104.69,104.65,2.92694093]
[1770066972577,8.6048,104.69,104.64,7.74228954]
[1770066972886,342.94,104.68,104.64,7.74228954]
[1770066973984,8.6049,104.68,104.64,4.81534861]
[1770066974185,343.5,104.67,104.64,4.81534861]
[1770066975583,343.5,104.67,104.62,7.82157258]
[1770066975785,344.16,104.66,104.62,4.89463165]
[1770066976189,2.92694093,104.67,104.62,4.89463165]
[1770066976383,344.46,104.66,104.62,4.89463165]
[1770066976781,347.38694093,104.66,104.62,4.89463165]
[1770066977283,347.38694093,104.66,104.63,4.8949865]
[1770066977284,345.1,104.66,104.63,4.8949865]
[1770066977589,345.1,104.66,104.63,7.82192743]
[1770066978288,345.72,104.67,104.63,16.43092743]
[1770066978990,345.72,104.67,104.64,4.88101596]
[1770066979184,346.18,104.68,104.65,4.88101596]
[1770066980285,8.60338636,104.7,104.65,7.80795689]
[1770066980492,346.98,104.69,104.65,7.80795689]
[1770066980691,8.636e-05,104.7,104.67,4.87969063]
[1770066980888,8.636e-05,104.7,104.68,4.87969063]
[1770066981192,8.636e-05,104.7,104.68,7.80663156]
[1770066981590,2.92694093,104.75,104.69,7.80663156]
[1770066981591,347.24,104.74,104.69,7.80663156]
[1770066982494,2.92694093,104.73,104.67,7.80663156]
[1770066982793,350.66694093,104.72,104.68,4.89051626]
[1770066983295,347.82,104.72,104.68,4.89051626]
[1770066984899,350.74694093,104.72,104.68,4.89051626]
[1770066985390,347.82,104.72,104.68,4.89051626]
[1770066985798,347.82,104.72,104.68,13.49531626]
[1770066988701,347.82,104.72,104.69,8.604]
[1770066991295,350.74008423,104.72,104.68,13.49531626]
[1770066991597,354.60008423,104.72,104.68,13.49531626]
[1770066991804,2.92008423,104.71,104.68,13.49531626]
[1770066992999,2.92008423,104.71,104.68,8.6048]
[1770066993805,2.92008423,104.71,104.67,8.6054]
[1770066994101,2.92008423,104.69,104.65,4.84014079]
[1770066994296,2.92008423,104.68,104.64,4.84014079]
[1770066994901,8.423e-05,104.68,104.64,4.84014079]
[1770066995104,2.92008423,104.69,104.64,4.84014079]
[1770066995316,356.36008423,104.69,104.64,4.84014079]
[1770066995706,356.36008423,104.69,104.66,8.6065]
[1770066995907,2.92008423,104.68,104.64,4.84014079]
[1770066996107,356.36008423,104.69,104.64,4.84014079]
[1770066997108,353.44,104.69,104.64,138.74474079]
[1770066997309,356.36008423,104.69,104.64,4.84014079]
[1770066997606,357.50008423,104.69,104.64,4.84014079]
[1770066998007,2.92008423,104.68,104.64,4.84014079]
[1770066998413,2.92008423,104.68,104.66,8.6063]
[1770066998903,354.58,104.69,104.66,8.6063]
[1770066999108,357.50008423,104.69,104.66,8.6063]
[1770066999709,357.50008423,104.69,104.65,8.6072]
[1770066999907,2.92008423,104.68,104.65,8.6072]
[1770067000813,2.92008423,104.66,104.62,4.85377102]
[1770067001111,2.92008423,104.67,104.62,4.85377102]
[1770067001311,2.92008423,104.67,104.63,8.6089]
[1770067002309,2.92008423,104.66,104.63,8.6089]
[1770067002715,359.78008423,104.66,104.63,8.6089]
[1770067003412,2.92008423,104.65,104.62,13.46317102]
[1770067005212,2.92008423,104.65,104.62,8.6094]
[1770067005413,2.92008423,104.63,104.61,8.6105]
[1770067005613,2.92008423,104.63,104.6,4.83706572]
[1770067005814,2.92008423,104.62,104.58,4.83706572]
[1770067006016,2.92008423,104.62,104.59,8.6123]
[1770067006411,8.423e-05,104.62,104.59,13.44936572]
[1770067006612,361.24008423,104.63,104.6,8.6114]
[1770067007021,2.92008423,104.62,104.57,4.84734256]
[1770067007219,2.92008423,104.6,104.57,4.84734256]
[1770067008020,2.92008423,104.6,104.56,13.46124256]
[1770067008718,2.92008423,104.6,104.57,8.6139]
[1770067008919,8.423e-05,104.59,104.56,4.84734256]
[1770067010418,8.423e-05,104.59,104.56,13.46204256]
[1770067013422,362.90008423,104.6,104.56,13.46204256]
[1770067016319,2.92008423,104.59,104.56,8.6147]
[1770067017923,366.76008423,104.59,104.56,8.6147]
[1770067018118,366.76008423,104.59,104.56,13.37633898]
[1770067018326,366.82008423,104.59,104.56,13.37633898]
[1770067019221,367.40008423,104.59,104.56,13.37633898]
[1770067019529,364.48,104.59,104.56,13.37633898]
[1770067019728,367.40008423,104.59,104.56,13.37633898]
[1770067020132,2.92008423,104.59,104.56,13.37633898]
[1770067020332,367.88008423,104.59,104.56,13.37633898]
[1770067021234,2.92008423,104.58,104.54,4.76369643]
[1770067021930,8.6107,104.61,104.52,4.76369643]
[1770067021931,2.92008423,104.57,104.52,4.76369643]
[1770067022130,2.92008423,104.55,104.5,4.76369643]
[1770067022326,2.92008423,104.53,104.5,4.76369643]
[1770067022828,2.92008423,104.53,104.48,4.7636834]
[1770067023135,368.84008423,104.53,104.48,4.7636834]
[1770067023331,368.88008423,104.53,104.48,4.7636834]
[1770067023732,2.92008423,104.51,104.46,4.7636834]
[1770067023931,369.20008423,104.5,104.46,4.7636834]
[1770067024234,369.24008423,104.5,104.46,13.3865834]
[1770067024626,2.92008423,104.49,104.44,4.76480557]
[1770067024834,134.0348,104.54,104.44,4.76480557]
[1770067024835,369.52008423,104.5,104.44,4.76480557]
[1770067025133,267.84008423,104.5,104.44,4.76480557]
[1770067025728,134.0096,104.56,104.46,4.76480557]
[1770067025937,2.92008423,104.53,104.47,4.76480557]
[1770067026130,366.96,104.55,104.47,4.76480557]
[1770067026131,133.9967,104.57,104.48,4.76480557]
[1770067026338,2.92008423,104.55,104.49,4.76480557]
[1770067026632,369.90008423,104.56,104.49,7.6848898]
[1770067027137,369.90008423,104.56,104.5,4.75302085]
[1770067027335,2.92008423,104.56,104.5,4.75302085]
[1770067027536,367.52,104.55,104.5,7.67310508]
[1770067028340,2.92008423,104.57,104.51,13.37182085]
[1770067028534,214.6,104.58,104.52,7.67075462]
[1770067028940,214.6,104.58,104.53,8.6172]
[1770067029732,217.52008423,104.58,104.53,8.6172]
[1770067029932,2.92008423,104.57,104.53,8.6172]
[1770067030138,217.52008423,104.58,104.53,8.6172]
[1770067030935,217.52008423,104.58,104.51,7.67075462]
[1770067031133,217.52008423,104.58,104.52,4.74818597]
[1770067031340,217.52008423,104.58,104.53,8.6172]
[1770067031541,214.6,104.58,104.53,8.6172]
[1770067031843,217.52008423,104.58,104.53,8.6172]
[1770067033844,2.92008423,104.57,104.53,8.6172]
[1770067040652,2.92008423,104.56,104.52,8.6179]
[1770067040854,2.92008423,104.56,104.51,4.77235529]
[1770067042352,2.92008423,104.56,104.53,8.6171]
[1770067042959,2.92008423,104.55,104.51,4.77235529]
[1770067043959,2.92008423,104.56,104.51,4.77235529]
[1770067044354,2.92008423,104.56,104.52,8.618]
[1770067044558,2.92008423,104.54,104.49,4.77232059]
[1770067044753,133.9835,104.58,104.47,138.89522059]
[1770067044754,2.92008423,104.53,104.47,138.89522059]
[1770067045061,2.92008423,104.51,104.47,4.77232059]
[1770067046961,2.92008423,104.51,104.47,13.39432059]
[1770067047161,2.92008423,104.48,104.43,138.96427003]
[1770067047358,162.7457,104.54,104.43,4.79107003]
[1770067047359,2.92008423,104.47,104.43,4.79107003]
[1770067047559,2.92008423,104.46,104.43,13.41657003]
[1770067048361,2.93465507,104.47,104.43,13.41657003]
[1770067048761,2.93465507,104.47,104.43,4.79107003]
[1770067049263,2.93465507,104.46,104.43,4.79107003]
[1770067050061,2.93465507,104.47,104.43,4.79107003]
[1770067050463,2.93465507,104.46,104.43,4.79107003]
[1770067051456,2.93465507,104.47,104.43,4.79107003]
[1770067052457,2.93465507,104.49,104.43,4.79107003]
[1770067052657,2.93465507,104.5,104.44,4.82744748]
[1770067052858,2.93465507,104.48,104.44,4.82744748]
[1770067053055,2.93465507,104.47,104.42,4.82744748]
[1770067053762,2.93465507,104.47,104.42,13.45374748]
[1770067054063,2.93465507,104.47,104.43,4.82744748]
[1770067054961,2.93465507,104.48,104.43,13.45284748]
[1770067056566,2.93465507,104.47,104.43,13.45284748]
[1770067060069,2.93465507,104.46,104.43,13.45284748]
[1770067060265,2.93465507,104.47,104.43,13.45284748]
[1770067060965,2.93465507,104.5,104.44,4.79267914]
[1770067061371,2.93465507,104.51,104.47,13.41467914]
[1770067062365,2.93465507,104.49,104.46,8.6229]
[1770067062668,2.93465507,104.49,104.45,4.79267914]
[1770067063369,2.93465507,104.49,104.45,13.41637914]
[1770067069672,2.93465507,104.48,104.45,8.6237]
[1770067073681,2.93465507,104.47,104.44,4.80888018]
[1770067073881,2.93465507,104.45,104.42,4.80085372]
[1770067074379,2.93465507,104.45,104.42,13.42705372]
[1770067074569,2.93465507,104.46,104.42,13.42705372]
[1770067074775,2.93465507,104.47,104.43,4.80000345]
[1770067075076,2.93465507,104.47,104.43,13.42550345]
[1770067075869,2.93465507,104.46,104.43,13.42550345]
[1770067076071,2.93465507,104.47,104.43,13.42550345]
[1770067080485,2.93465507,104.47,104.44,4.78426781]
[1770067080782,2.93465507,104.48,104.44,13.40886781]
[1770067080985,2.93465507,104.48,104.44,4.78426781]
[1770067081185,2.93465507,104.47,104.44,4.78426781]
[1770067081589,2.93465507,104.48,104.44,4.78426781]
[1770067082388,2.93465507,104.48,104.44,13.40886781]
[1770067082985,11.55615507,104.48,104.44,4.78426781]
[1770067083186,2.93465507,104.47,104.44,4.78426781]
[1770067083787,11.55615507,104.48,104.44,4.78426781]
[1770067086492,2.93465507,104.48,104.45,4.7734174]
[1770067086700,2.93465507,104.49,104.45,4.7734174]
[1770067087592,2.93465507,104.49,104.46,4.7734174]
[1770067087792,2.93465507,104.53,104.46,4.7734174]
[1770067088099,2.93465507,104.53,104.47,4.7734174]
[1770067088491,2.93465507,104.53,104.49,4.79514231]
[1770067088692,2.93465507,104.54,104.49,4.79514231]
[1770067088995,381.3,104.55,104.49,7.72979738]
[1770067089192,381.3,104.55,104.5,4.79514231]
[1770067089394,2.93465507,104.54,104.48,4.79514231]
[1770067089691,2.93465507,104.53,104.48,4.79514231]
[1770067090399,2.93465507,104.53,104.48,13.41644231]
[1770067090697,2.93465507,104.53,104.48,4.79514231]
[1770067092099,229.65465507,104.54,104.48,4.79514231]
[1770067092398,238.27135507,104.54,104.48,4.79514231]
[1770067093892,390.5567,104.54,104.49,4.81781432]
[1770067094093,390.5567,104.54,104.49,2.93465507]
[1770067094094,381.94,104.54,104.49,2.93465507]
[1770067094293,2.93465507,104.56,104.51,4.81781432]
[1770067094798,384.87465507,104.57,104.51,4.81781432]
[1770067094999,384.87465507,104.57,104.51,7.75246939]
[1770067095501,384.87465507,104.57,104.51,4.81781432]
[1770067095703,2.93465507,104.56,104.49,7.75279062]
[1770067095900,2.93465507,104.56,104.5,4.81813555]
[1770067095901,2.93465507,104.55,104.5,4.81813555]
[1770067096302,11.54945507,104.56,104.5,4.81813555]
[1770067096501,8.6148,104.56,104.51,4.81813555]
[1770067096702,11.54945507,104.56,104.51,4.81813555]
[1770067098100,2.93465507,104.56,104.51,4.81813555]
[1770067098898,393.48865507,104.57,104.51,4.81813555]
[1770067099804,11.54965507,104.56,104.5,8.6197]
[1770067100007,11.54965507,104.56,104.5,13.33057261]
[1770067100205,11.54965507,104.56,104.51,4.71087261]
[1770067100504,8.615,104.56,104.51,4.71087261]
[1770067103005,393.38875507,104.57,104.51,13.32957261]
[1770067104307,8.6148,104.56,104.51,13.32957261]
[1770067105009,11.54945507,104.56,104.51,13.32957261]
[1770067105708,11.54945507,104.56,104.49,2.93465507]
[1770067105709,2.93465507,104.54,104.49,13.41601688]
[1770067105902,2.93465507,104.53,104.49,13.41601688]
[1770067106103,2.93465507,104.52,104.49,13.41601688]
[1770067107507,2.93465507,104.53,104.49,13.41601688]
[1770067110404,2.93134307,104.53,104.49,13.41601688]
[1770067110906,381.8,104.54,104.5,13.41919471]
[1770067111115,384.73134307,104.54,104.5,13.41919471]
[1770067111401,2.93134307,104.54,104.5,13.41919471]
[1770067112110,2.93134307,104.53,104.5,13.41919471]
[1770067114111,2.93134307,104.53,104.49,8.6205]
[1770067114312,2.93134307,104.52,104.49,8.6205]
[1770067114510,2.93134307,104.52,104.48,4.80684429]
[1770067114711,2.93134307,104.52,104.48,13.42814429]
[1770067117217,2.93134307,104.53,104.48,13.42814429]
[1770067126518,11.54864307,104.53,104.48,13.42814429]
[1770067126720,2.93134307,104.51,104.48,4.80684429]
[1770067126915,2.93134307,104.51,104.46,13.41868084]
[1770067127117,2.93134307,104.51,104.47,4.79628084]
[1770067127315,2.93134307,104.51,104.47,13.41828084]
[1770067130018,2.93134307,104.51,104.47,8.622]
[1770067130223,2.93134307,104.51,104.48,4.73704418]
[1770067131526,2.93134307,104.52,104.48,4.73704418]
[1770067131926,2.93134307,104.51,104.48,4.73704418]
[1770067132427,2.93134307,104.52,104.48,4.73704418]
[1770067141735,2.93134307,104.52,104.49,4.61612626]
[1770067142045,2.93134307,104.53,104.49,4.61612626]
[1770067143937,384.79134307,104.54,104.5,4.61888533]
[1770067144237,2.93134307,104.54,104.5,4.61888533]
[1770067144733,2.93134307,104.52,104.48,13.24367099]
[1770067144929,2.93134307,104.51,104.48,4.62247099]
[1770067145834,2.93134307,104.53,104.49,4.62247099]
[1770067146036,384.41134307,104.54,104.49,4.62247099]
[1770067146936,393.02784307,104.54,104.49,13.24297099]
[1770067147338,11.54784307,104.54,104.49,13.24297099]
[1770067147834,2.93134307,104.53,104.49,13.24297099]
[1770067148235,2.93134307,104.53,104.5,4.62152776]
[1770067149134,2.93134307,104.54,104.5,4.62152776]
[1770067150337,2.93134307,104.56,104.51,4.61815621]
[1770067150736,2.93134307,104.55,104.51,4.61815621]
[1770067150939,2.93134307,104.55,104.51,13.23695621]
[1770067151939,384.77134307,104.57,104.53,4.62314837]
[1770067152135,2.93134307,104.56,104.53,4.62314837]
[1770067153939,2.93134307,104.55,104.51,13.24073429]
[1770067154338,2.93134307,104.55,104.52,4.62193429]
[1770067154943,2.93134307,104.56,104.52,4.62193429]
[1770067155939,11.54624307,104.56,104.52,4.62193429]
[1770067156145,2.93134307,104.55,104.52,4.62193429]
[1770067156344,11.54624307,104.56,104.52,4.62193429]
[1770067158744,2.93134307,104.56,104.52,4.62193429]
[1770067159540,390.454,104.57,104.52,13.23983429]
[1770067159541,384.77134307,104.57,104.52,13.23983429]
[1770067160045,2.93134307,104.56,104.52,13.23983429]
[1770067160845,2.93134307,104.55,104.52,13.23983429]
[1770067161244,2.93134307,104.55,104.52,4.62193429]
[1770067162445,2.93134307,104.54,104.52,4.62193429]
[1770067164753,2.93134307,104.55,104.52,4.62193429]
[1770067165649,2.93134307,104.54,104.5,13.21470494]
[1770067165950,2.93134307,104.53,104.47,4.59520494]
[1770067166249,2.93134307,104.53,104.5,4.59520494]
[1770067166449,384.67134307,104.55,104.5,4.59520494]
[1770067166847,384.67134307,104.55,104.51,8.6189]
[1770067167046,2.93134307,104.54,104.51,8.6189]
[1770067167850,384.67134307,104.55,104.52,4.57855269]
[1770067168353,8.614,104.57,104.52,4.57855269]
[1770067168354,2.93134307,104.56,104.52,4.57855269]
[1770067170355,2.92975239,104.55,104.52,4.57855269]
[1770067172255,2.92975239,104.54,104.51,8.6189]
[1770067172455,2.92975239,104.54,104.5,4.58164034]
[1770067173158,2.92975239,104.54,104.5,13.20124034]
[1770067175363,2.92975239,104.55,104.5,13.20124034]
[1770067175768,2.92975239,104.55,104.52,4.59326699]
[1770067176062,2.92975239,104.56,104.52,4.59326699]
[1770067176267,2.92975239,104.56,104.52,13.21126699]
[1770067176969,2.92975239,104.57,104.53,4.59093267]
[1770067177964,2.92975239,104.56,104.53,4.59093267]
[1770067178166,2.92975239,104.55,104.51,4.59093267]
[1770067178367,2.92975239,104.54,104.51,4.59093267]
[1770067179566,2.92975239,104.54,104.51,13.20983267]
[1770067180567,2.92975239,104.55,104.51,13.20983267]
[1770067183974,2.92975239,104.54,104.51,13.20983267]
[1770067184367,2.92975239,104.55,104.51,13.20983267]
[1770067191275,2.92975239,104.55,104.52,4.59950061]
[1770067198079,2.92975239,104.54,104.5,13.21377631]
[1770067198474,2.92975239,104.54,104.51,4.59407631]
[1770067201282,11.54535239,104.55,104.51,4.59407631]
[1770067202381,8.6149,104.56,104.51,13.21287631]
[1770067202581,2.92975239,104.55,104.51,13.21287631]
[1770067203781,11.54465239,104.56,104.51,13.21287631]
[1770067205080,2.92975239,104.56,104.51,13.21287631]
[1770067205784,2.92975239,104.56,104.52,4.58574733]
[1770067207785,2.92975239,104.55,104.52,4.58574733]
[1770067211182,381.74,104.57,104.52,4.58574733]
[1770067211387,4.1741481,104.6,104.54,3.59870191]
[1770067211690,4.1741481,104.6,104.56,3.59870191]
[1770067211893,384.66975239,104.62,104.56,3.59870191]
[1770067212191,4.1741481,104.62,104.56,3.59870191]
[1770067212490,2.92975239,104.6,104.56,3.59870191]
[1770067216986,2.92975239,104.58,104.54,3.59870191]
[1770067217393,2.92975239,104.6,104.54,3.59870191]
[1770067218294,2.92975239,104.6,104.56,12.21340191]
[1770067219897,2.92975239,104.59,104.56,12.21340191]
[1770067220597,2.92975239,104.57,104.54,8.6157]
[1770067220798,2.92975239,104.56,104.53,3.44990829]
[1770067220999,2.92975239,104.57,104.53,3.44990829]
[1770067222398,2.92975239,104.57,104.53,12.06690829]
[1770067222801,2.92975239,104.57,104.53,3.44990829]
[1770067223901,2.92975239,104.56,104.53,3.44990829]
[1770067224695,2.92975239,104.54,104.51,3.44990829]
[1770067224901,2.92975239,104.55,104.51,3.44990829]
[1770067225800,2.92975239,104.56,104.51,3.44990829]
[1770067226007,2.92975239,104.58,104.52,3.44990829]
[1770067226615,11.54285239,104.58,104.53,3.44990829]
[1770067226911,2.92975239,104.57,104.53,3.44990829]
[1770067227707,2.92975239,104.56,104.53,3.44990829]
[1770067229113,2.92975239,104.55,104.53,3.44990829]
[1770067229313,2.92975239,104.56,104.53,3.44990829]
[1770067230011,2.92975239,104.55,104.51,12.06870829]
[1770067230215,2.92975239,104.54,104.51,3.44990829]
[1770067230416,2.93078087,104.54,104.51,3.44990829]
[1770067230715,486.8037,104.58,104.46,2.93078087]
[1770067230716,2.93078087,104.52,104.49,12.07020829]
[1770067230916,2.93078087,104.51,104.47,3.44990829]
[1770067231104,2.93078087,104.51,104.45,12.07370829]
[1770067231105,2.93078087,104.49,104.45,12.07370829]
[1770067231511,2.93078087,104.5,104.46,3.44990829]
[1770067232115,2.93078087,104.5,104.46,12.07270829]
[1770067233915,2.93078087,104.5,104.47,3.44990829]
[1770067234117,2.93078087,104.5,104.47,12.07190829]
[1770067235014,8.618,104.53,104.48,3.44990829]
[1770067235220,2.93078087,104.52,104.48,12.07100829]
[1770067238216,2.93078087,104.52,104.48,3.44990829]
[1770067238419,2.93078087,104.51,104.46,3.44990829]
[1770067238620,2.93078087,104.5,104.46,3.44990829]
[1770067239023,2.93078087,104.49,104.46,3.44990829]
[1770067239217,2.93078087,104.5,104.46,3.44990829]
[1770067244223,2.93078087,104.5,104.46,12.07280829]
[1770067244725,2.93078087,104.51,104.47,12.07210829]
[1770067245927,2.93078087,104.52,104.48,12.07110829]
[1770067246231,2.93078087,104.53,104.49,3.44990829]
[1770067247124,2.93078087,104.53,104.47,12.07190829]
[1770067247125,2.93078087,104.51,104.47,12.07190829]
[1770067248430,6.5980117,104.52,104.48,12.07100829]
[1770067249030,11.54818087,104.53,104.48,12.07100829]
[1770067249533,2.93078087,104.53,104.48,12.07100829]
[1770067250332,2.93078087,104.52,104.48,3.44990829]
[1770067251831,2.93078087,104.52,104.48,12.07120829]
[1770067255135,2.93078087,104.5,104.46,3.67700223]
[1770067255332,6.64125085,104.51,104.46,3.67700223]
[1770067255732,2.93078087,104.51,104.46,3.67700223]
[1770067256236,2.93078087,104.51,104.46,12.29930223]
[1770067256728,2.93078087,104.51,104.47,3.67700223]
[1770067257129,11.54888087,104.52,104.47,12.29890223]
[1770067257327,8.6172,104.54,104.47,3.67700223]
[1770067257638,2.93078087,104.53,104.47,3.67700223]
[1770067258537,2.93078087,104.53,104.46,137.06268087]
[1770067258538,2.93078087,104.53,104.49,12.29740223]
[1770067259332,2.93078087,104.54,104.5,12.29660223]
[1770067261140,6.64125085,104.54,104.5,3.67700223]
[1770067261334,15.25775085,104.54,104.5,3.67700223]
[1770067261534,6.64125085,104.54,104.5,3.67700223]
[1770067262940,2.93078087,104.53,104.5,3.67700223]
[1770067263133,6.64125085,104.54,104.5,12.29670223]
[1770067263833,6.64125085,104.53,104.48,3.67700223]
[1770067264429,2.93078087,104.52,104.48,3.67700223]
[1770067265133,6.64125085,104.52,104.47,8.6215]
[1770067265331,2.93078087,104.51,104.46,3.67700223]
[1770067266434,2.93078087,104.51,104.47,3.67700223]
[1770067267834,15.26025085,104.51,104.46,8.623]
[1770067268038,2.93078087,104.5,104.46,12.30000223]
[1770067268240,15.26025085,104.51,104.46,12.30000223]
[1770067268740,2.93078087,104.5,104.46,3.67700223]
[1770067269147,2.93078087,104.49,104.44,12.30170223]
[1770067269738,2.93078087,104.49,104.42,385.52818087]
[1770067269739,2.93078087,104.47,104.42,3.67700223]